bitfinex/quotes_SOLUSD_20250416
["timestamp","ask_amount","ask_price","bid_price","bid_amount"]
[1744811151193,31.28420238,125.44,125.41,7.97384578]
[1744811151716,57.28420238,125.45,125.41,7.97384578]
[1744811153027,26.0,125.45,125.41,39.25804816]
[1744811153194,26.0,125.45,125.43,7.97257434]
[1744811153911,31.28420238,125.44,125.39,51.22179294]
[1744811154120,31.28420238,125.42,125.39,7.97511763]
[1744811154299,31.28420238,125.41,125.39,7.97511763]
[1744811154495,57.28420238,125.41,125.39,7.97511763]
[1744811155187,0.14216157,125.44,125.37,59.20131805]
[1744811155395,26.14216157,125.44,125.38,31.28420238]
[1744811155595,31.28420238,125.43,125.38,31.28420238]
[1744811155807,31.28420238,125.43,125.39,31.28420238]
[1744811156007,1.5792,125.49,125.42,31.28420238]
[1744811156205,31.28420238,125.46,125.41,31.28420238]
[1744811156409,57.28420238,125.46,125.41,31.28420238]
[1744811156709,57.28420238,125.46,125.42,31.28420238]
[1744811157217,57.28420238,125.46,125.42,7.97321001]
[1744811158104,31.28420238,125.45,125.42,7.97321001]
[1744811158408,26.0,125.46,125.42,7.97321001]
[1744811158615,31.28420238,125.45,125.42,7.97321001]
[1744811158813,26.0,125.46,125.42,39.25741239]
[1744811159313,57.28420238,125.46,125.42,7.97321001]
[1744811159696,26.0,125.46,125.42,39.25741239]
[1744811159901,31.28420238,125.45,125.42,7.97321001]
[1744811160109,57.28420238,125.46,125.42,7.97321001]
[1744811160315,31.28420238,125.45,125.39,7.97511763]
[1744811160519,31.28420238,125.43,125.39,7.97511763]
[1744811160706,31.28420238,125.43,125.39,39.25932001]
[1744811160896,31.28420238,125.44,125.4,31.28420238]
[1744811161096,26.0,125.46,125.43,31.28420238]
[1744811162321,32.86340238,125.49,125.44,31.28420238]
[1744811162509,57.28420238,125.48,125.42,18.64964886]
[1744811162711,31.28420238,125.47,125.43,31.28420238]
[1744811163098,31.28420238,125.47,125.43,7.97257434]
[1744811163301,31.28420238,125.45,125.43,7.97257434]
[1744811163499,9.54811764,125.49,125.43,7.97257434]
[1744811163500,31.28420238,125.44,125.43,7.97257434]
[1744811163823,31.28420238,125.45,125.43,7.97257434]
[1744811164229,57.28420238,125.44,125.39,27.91283758]
[1744811164433,31.28420238,125.4,125.39,7.97511763]
[1744811164729,57.28420238,125.44,125.39,39.25932001]
[1744811164932,57.28420238,125.44,125.4,31.28420238]
[1744811165119,31.28420238,125.42,125.37,39.26059226]
[1744811165314,26.0,125.44,125.38,31.28420238]
[1744811165531,31.28420238,125.42,125.37,27.91588699]
[1744811165717,31.28420238,125.41,125.37,27.91588699]
[1744811165920,31.28420238,125.38,125.37,7.97638988]
[1744811166631,31.28420238,125.38,125.35,2.8906439]
[1744811166803,31.28420238,125.36,125.35,2.8906439]
[1744811168709,31.42636395,125.36,125.35,2.8906439]
[1744811168914,58.05303897,125.36,125.35,2.8906439]
[1744811169405,26.0,125.33,125.28,7.98212005]
[1744811169606,31.28420238,125.29,125.25,57.89716554]
[1744811169807,31.28420238,125.29,125.25,26.61296316]
[1744811170225,31.28420238,125.29,125.25,57.89716554]
[1744811170628,26.0,125.32,125.26,59.22608325]
[1744811170824,31.28420238,125.32,125.27,31.28420238]
[1744811171032,26.0,125.33,125.28,31.28420238]
[1744811171214,31.28420238,125.32,125.26,27.94188087]
[1744811171540,31.28420238,125.31,125.27,31.28420238]
[1744811171714,31.28420238,125.31,125.26,59.22608325]
[1744811171919,31.28420238,125.31,125.26,27.94188087]
[1744811172238,26.0,125.32,125.26,59.22608325]
[1744811172530,31.28420238,125.3,125.26,59.22608325]
[1744811172934,31.28420238,125.31,125.26,59.22608325]
[1744811173140,31.28420238,125.31,125.26,27.94188087]
[1744811173339,31.28420238,125.31,125.26,59.22608325]
[1744811173524,31.28420238,125.31,125.26,27.94188087]
[1744811173835,31.28420238,125.31,125.27,31.28420238]
[1744811174137,31.28420238,125.31,125.26,59.22608325]
[1744811174310,26.0,125.32,125.27,31.28420238]
[1744811174515,31.28420238,125.34,125.26,53.94188087]
[1744811174830,26.0,125.35,125.3,31.28420238]
[1744811175010,57.28420238,125.34,125.3,31.28420238]
[1744811175333,57.28420238,125.34,125.29,31.28420238]
[1744811175334,31.28420238,125.33,125.29,31.28420238]
[1744811175520,31.28420238,125.31,125.27,7.98275724]
[1744811175922,31.28420238,125.31,125.27,39.26695962]
[1744811176327,31.28420238,125.3,125.27,7.98275724]
[1744811177019,57.28420238,125.31,125.27,39.26695962]
[1744811177219,31.28420238,125.33,125.28,31.28420238]
[1744811177438,57.28420238,125.33,125.29,7.98148295]
[1744811177639,7.97680304,125.37,125.3,31.28420238]
[1744811177940,57.28420238,125.35,125.3,31.28420238]
[1744811178142,57.28420238,125.35,125.31,31.28420238]
[1744811178435,26.0,125.35,125.3,31.28420238]
[1744811178736,39.31200238,125.38,125.33,31.28420238]
[1744811178938,57.28420238,125.37,125.33,31.28420238]
[1744811179141,57.28420238,125.37,125.3,18.64964886]
[1744811179142,31.28420238,125.38,125.34,31.28420238]
[1744811179316,31.28420238,125.4,125.35,31.28420238]
[1744811179635,31.28420238,125.37,125.35,7.97766254]
[1744811179841,57.28420238,125.4,125.35,39.26186492]
[1744811180017,26.0,125.4,125.35,39.26186492]
[1744811180213,31.28420238,125.38,125.35,27.9218189]
[1744811180418,31.28420238,125.39,125.35,39.26186492]
[1744811180636,26.14216157,125.4,125.35,7.97766254]
[1744811180820,26.0,125.4,125.36,31.28420238]
[1744811181233,57.28420238,125.4,125.36,31.28420238]
[1744811181435,31.28420238,125.4,125.36,31.28420238]
[1744811181645,31.28420238,125.4,125.37,27.91736459]
[1744811181846,31.28420238,125.4,125.37,7.97638988]
[1744811182017,31.28420238,125.39,125.37,7.97638988]
[1744811182320,256.81479572,125.43,125.38,31.28420238]
[1744811182321,248.7,125.43,125.38,31.28420238]
[1744811182517,305.98420238,125.43,125.38,31.28420238]
[1744811183144,6.5549,125.47,125.4,31.28420238]
[1744811183451,57.28420238,125.45,125.39,7.97511763]
[1744811183741,31.28420238,125.44,125.4,31.28420238]
[1744811184131,31.28420238,125.41,125.39,7.97511763]
[1744811185316,31.28420238,125.41,125.37,31.28420238]
[1744811185317,31.28420238,125.41,125.37,7.97638988]
[1744811185722,31.28420238,125.4,125.37,7.97638988]
[1744811185922,31.28420238,125.39,125.37,7.97638988]
[1744811186126,31.28420238,125.38,125.35,7.97766254]
[1744811186341,31.28420238,125.36,125.33,7.9789356]
[1744811186515,26.0,125.38,125.33,7.9789356]
[1744811186516,31.28420238,125.35,125.33,7.9789356]
[1744811186717,31.28420238,125.36,125.33,7.9789356]
[1744811187021,31.28420238,125.35,125.33,7.9789356]
[1744811187219,31.28420238,125.34,125.3,19.95166058]
[1744811187423,31.28420238,125.33,125.3,19.95166058]
[1744811187828,31.28420238,125.33,125.29,7.98148295]
[1744811188335,31.28420238,125.34,125.3,31.28420238]
[1744811189042,57.28420238,125.35,125.3,31.28420238]
[1744811189241,6.586,125.39,125.32,31.28420238]
[1744811189538,248.86,125.43,125.38,31.28420238]
[1744811189735,31.28420238,125.45,125.4,31.28420238]
[1744811189939,31.28420238,125.44,125.4,31.28420238]
[1744811190240,57.28420238,125.44,125.4,31.28420238]
[1744811190439,7.96939751,125.48,125.42,31.28420238]
[1744811190619,31.28420238,125.46,125.42,31.28420238]
[1744811190826,31.28420238,125.45,125.4,31.28420238]
[1744811191322,31.28420238,125.44,125.4,51.21965026]
[1744811191521,31.28420238,125.44,125.4,19.93544788]
[1744811191720,31.28420238,125.44,125.4,51.21965026]
[1744811192034,31.28420238,125.42,125.39,7.97511763]
[1744811192231,31.28420238,125.41,125.39,7.97511763]
[1744811192736,31.28420238,125.41,125.37,31.28420238]
[1744811192737,57.28420238,125.4,125.35,31.28420238]
[1744811192946,31.28420238,125.39,125.35,31.28420238]
[1744811193432,31.28420238,125.39,125.36,7.97702616]
[1744811193746,31.28420238,125.38,125.36,7.97702616]
[1744811194237,31.28420238,125.37,125.35,7.97766254]
[1744811194442,26.14216157,125.4,125.35,7.97766254]
[1744811194632,26.0,125.4,125.36,31.28420238]
[1744811194942,0.14216157,125.42,125.37,31.28420238]
[1744811194943,31.28420238,125.41,125.37,31.28420238]
[1744811195240,31.28420238,125.42,125.38,31.28420238]
[1744811195551,31.28420238,125.41,125.39,7.97511763]
[1744811195718,31.28420238,125.42,125.39,7.97511763]
[1744811196346,31.28420238,125.41,125.39,7.97511763]
[1744811196555,31.28420238,125.4,125.38,7.9757537]
[1744811196846,31.28420238,125.39,125.35,27.92137883]
[1744811197552,31.28420238,125.39,125.33,46.57592348]
[1744811197739,31.28420238,125.39,125.34,31.28420238]
[1744811198132,31.28420238,125.39,125.35,31.28420238]
[1744811198335,31.28420238,125.39,125.34,31.28420238]
[1744811198639,31.28420238,125.39,125.35,31.28420238]
[1744811198841,31.28420238,125.4,125.36,31.28420238]
[1744811199036,26.0,125.41,125.37,31.28420238]
[1744811199237,20.0,125.47,125.4,31.28420238]
[1744811199449,7.96939751,125.48,125.43,7.97257434]
[1744811199635,26.0,125.45,125.43,7.97257434]
[1744811200750,31.28420238,125.46,125.43,7.97257434]
[1744811201054,31.28420238,125.48,125.43,59.18821258]
[1744811201252,47.69518443,125.47,125.43,27.9040102]
[1744811202062,47.69518443,125.45,125.42,7.97294577]
[1744811202275,47.69518443,125.43,125.4,7.97448165]
[1744811202434,0.14216157,125.44,125.4,7.97448165]
[1744811202633,47.69518443,125.43,125.4,7.97448165]
[1744811202864,47.837346,125.44,125.4,7.97448165]
[1744811203096,47.69518443,125.43,125.4,7.97448165]
[1744811203946,73.69518443,125.45,125.4,75.60587022]
[1744811204349,73.69518443,125.45,125.4,27.91068579]
[1744811204553,73.69518443,125.45,125.4,75.60587022]
[1744811205468,47.69518443,125.43,125.4,7.97448165]
[1744811205641,47.69518443,125.42,125.38,19.93897378]
[1744811205964,47.69518443,125.39,125.37,7.97638988]
[1744811206368,47.69518443,125.4,125.37,7.97638988]
[1744811207570,73.69518443,125.41,125.37,7.97638988]
[1744811208081,73.69518443,125.43,125.39,47.69518443]
[1744811209066,47.69518443,125.44,125.4,47.69518443]
[1744811209448,47.69518443,125.44,125.37,67.79931401]
[1744811209449,47.69518443,125.47,125.42,47.69518443]
[1744811209653,26.0,125.46,125.42,47.69518443]
[1744811210062,47.69518443,125.48,125.43,47.69518443]
[1744811210263,47.69518443,125.48,125.44,47.69518443]
[1744811210462,73.69518443,125.49,125.45,47.69518443]
[1744811210854,47.69518443,125.48,125.44,47.69518443]
[1744811211373,47.69518443,125.47,125.44,7.97193877]
[1744811211564,47.69518443,125.46,125.44,7.97193877]
[1744811212370,47.69518443,125.47,125.44,7.97193877]
[1744811212961,47.69518443,125.46,125.44,7.97193877]
[1744811213577,47.69518443,125.47,125.43,7.97257434]
[1744811214573,47.69518443,125.44,125.42,7.9728909]
[1744811214877,73.69518443,125.45,125.42,7.9728909]
[1744811216179,47.69518443,125.43,125.4,7.97448165]
[1744811216350,47.837346,125.45,125.4,75.60587022]
[1744811216556,73.837346,125.45,125.4,75.60587022]
[1744811216875,47.69518443,125.44,125.4,75.60587022]
[1744811217673,47.69518443,125.44,125.4,27.91068579]
[1744811217876,47.69518443,125.44,125.37,32.243]
[1744811217877,47.69518443,125.41,125.38,7.9757537]
[1744811218058,47.69518443,125.39,125.38,7.9757537]
[1744811218454,47.69518443,125.4,125.38,7.9757537]
[1744811218649,47.69518443,125.39,125.38,7.9757537]
[1744811218858,47.69518443,125.39,125.37,7.97607143]
[1744811219783,26.0,125.37,125.32,19.94839308]
[1744811219960,73.69518443,125.36,125.31,55.67539351]
[1744811220277,73.69518443,125.36,125.32,47.69518443]
[1744811221177,47.69518443,125.35,125.31,7.98020908]
[1744811221873,47.69518443,125.33,125.3,7.98084596]
[1744811222070,47.69518443,125.34,125.3,7.98084596]
[1744811222267,47.69518443,125.35,125.3,55.67603039]
[1744811222466,26.0,125.36,125.32,47.69518443]
[1744811222670,73.69518443,125.37,125.33,47.69518443]
[1744811222979,73.69518443,125.37,125.32,47.69518443]
[1744811223355,47.69518443,125.35,125.31,47.69518443]
[1744811223869,47.69518443,125.34,125.31,7.98020908]
[1744811224069,26.0,125.37,125.32,47.69518443]
[1744811224265,47.837346,125.36,125.32,47.69518443]
[1744811224473,47.69518443,125.35,125.31,55.67539351]
[1744811224783,73.69518443,125.37,125.33,47.69518443]
[1744811224979,26.0,125.37,125.33,47.69518443]
[1744811225155,26.0,125.37,125.33,31.4952937]
[1744811225355,26.0,125.37,125.32,31.4952937]
[1744811225568,31.4952937,125.36,125.32,31.4952937]
[1744811225859,31.4952937,125.36,125.33,7.9789356]
[1744811226672,57.4952937,125.37,125.33,39.4742293]
[1744811226872,31.4952937,125.41,125.36,31.4952937]
[1744811227082,280.2352937,125.42,125.37,31.4952937]
[1744811227286,6.3239,125.46,125.4,31.4952937]
[1744811227490,31.4952937,125.47,125.43,31.4952937]
[1744811227685,31.4952937,125.44,125.39,31.4952937]
[1744811227888,31.4952937,125.43,125.39,39.46993939]
[1744811228181,31.4952937,125.42,125.38,7.9757537]
[1744811228594,31.4952937,125.41,125.38,7.9757537]
[1744811228795,31.4952937,125.42,125.38,59.41043167]
[1744811228963,31.4952937,125.43,125.39,31.4952937]
[1744811229293,33.97199525,125.44,125.38,7.9757537]
[1744811229294,31.4952937,125.42,125.38,7.9757537]
[1744811229588,31.4952937,125.41,125.38,7.9757537]
[1744811230276,31.4952937,125.42,125.38,7.9757537]
[1744811230481,31.4952937,125.41,125.38,7.9757537]
[1744811232169,31.4952937,125.42,125.38,39.4710474]
[1744811232368,31.4952937,125.42,125.38,7.9757537]
[1744811232884,31.4952937,125.4,125.37,7.9761621]
[1744811233096,31.4952937,125.39,125.35,7.97766254]
[1744811233271,31.4952937,125.38,125.35,7.97766254]
[1744811233790,57.4952937,125.4,125.35,39.47295624]
[1744811233969,57.4952937,125.41,125.35,7.97766254]
[1744811234169,31.4952937,125.39,125.35,39.47295624]
[1744811235164,31.4952937,125.39,125.35,7.97766254]
[1744811236086,31.63745527,125.4,125.35,39.47295624]
[1744811236290,57.4952937,125.41,125.37,31.4952937]
[1744811236469,57.4952937,125.41,125.36,31.4952937]
[1744811237371,57.4952937,125.41,125.37,31.4952937]
[1744811237575,26.0,125.44,125.39,31.4952937]
[1744811237769,82.9,125.47,125.42,31.4952937]
[1744811237972,26.0,125.46,125.42,39.46792084]
[1744811238595,31.4952937,125.45,125.41,7.9735422]
[1744811238890,31.4952937,125.44,125.41,7.9735422]
[1744811239197,31.4952937,125.44,125.39,31.4952937]
[1744811239384,31.4952937,125.44,125.4,39.46947584]
[1744811239572,31.4952937,125.43,125.39,7.97483173]
[1744811240276,31.4952937,125.42,125.39,7.97483173]
[1744811240478,31.4952937,125.43,125.39,7.97483173]
[1744811240788,31.4952937,125.42,125.37,39.47168358]
[1744811242590,57.4952937,125.44,125.39,31.4952937]
[1744811242989,26.0,125.44,125.4,31.4952937]
[1744811243188,57.4952937,125.44,125.4,31.4952937]
[1744811244102,57.4952937,125.44,125.39,31.4952937]
[1744811244303,26.0,125.44,125.4,31.4952937]
[1744811244473,31.4952937,125.45,125.41,31.4952937]
[1744811244897,31.4952937,125.45,125.4,31.4952937]
[1744811245172,31.4952937,125.44,125.4,31.4952937]
[1744811245373,31.4952937,125.42,125.38,31.4952937]
[1744811245667,31.4952937,125.42,125.37,51.43626841]
[1744811246077,31.4952937,125.43,125.38,31.4952937]
[1744811246596,31.4952937,125.42,125.37,19.94097471]
[1744811246797,31.4952937,125.41,125.37,31.4952937]
[1744811246975,31.4952937,125.41,125.36,39.47231986]
[1744811247377,31.4952937,125.41,125.37,31.4952937]
[1744811248306,31.4952937,125.41,125.38,7.9757537]
[1744811248596,31.4952937,125.42,125.38,39.4710474]
[1744811248776,31.4952937,125.42,125.38,7.9757537]
[1744811250308,26.14216157,125.43,125.38,31.4952937]
[1744811250474,31.4952937,125.42,125.38,31.4952937]
[1744811251077,31.4952937,125.42,125.37,31.4952937]
[1744811251493,26.0,125.43,125.39,31.4952937]
[1744811251876,57.4952937,125.43,125.39,31.4952937]
[1744811252382,57.4952937,125.43,125.4,7.97448165]
[1744811252582,82.9,125.46,125.4,39.46977535]
[1744811252904,82.9,125.46,125.4,59.40597949]
[1744811252905,57.4952937,125.45,125.4,59.40597949]
[1744811253210,31.4952937,125.44,125.4,59.40597949]
[1744811253504,31.4952937,125.44,125.4,27.91068579]
[1744811253798,31.4952937,125.42,125.4,7.97448165]
[1744811253976,31.4952937,125.41,125.37,7.97638988]
[1744811254177,31.4952937,125.41,125.37,39.47168358]
[1744811254491,31.4952937,125.41,125.37,59.41265829]
[1744811254676,31.4952937,125.41,125.37,7.97638988]
[1744811254995,31.4952937,125.41,125.37,39.47168358]
[1744811255373,0.14216157,125.42,125.37,39.47168358]
[1744811255579,57.4952937,125.43,125.38,31.4952937]
[1744811255778,250.4591,125.47,125.41,31.4952937]
[1744811256082,57.4952937,125.46,125.42,31.4952937]
[1744811256281,57.4952937,125.46,125.41,31.4952937]
[1744811256490,57.4952937,125.46,125.42,7.97321001]
[1744811257002,31.4952937,125.44,125.38,27.91513797]
[1744811257197,31.4952937,125.44,125.4,31.4952937]
[1744811258111,31.4952937,125.45,125.41,31.4952937]
[1744811258412,26.0,125.45,125.42,31.4952937]
[1744811258774,26.0,125.45,125.43,7.97257434]
[1744811259812,57.4952937,125.45,125.4,31.4952937]
[1744811260011,31.4952937,125.43,125.38,27.91513797]
[1744811260195,31.4952937,125.43,125.39,31.4952937]
[1744811260506,31.4952937,125.41,125.38,7.9757537]
[1744811260710,31.4952937,125.4,125.36,19.94212938]
[1744811260913,31.4952937,125.41,125.36,51.43742308]
[1744811261081,31.63745527,125.42,125.37,31.4952937]
[1744811261280,0.14216157,125.43,125.38,31.4952937]
[1744811261501,31.63745527,125.43,125.38,31.4952937]
[1744811261809,31.4952937,125.4,125.36,51.43742308]
[1744811262196,31.4952937,125.41,125.37,31.4952937]
[1744811262391,31.4952937,125.41,125.36,51.43742308]
[1744811262904,31.4952937,125.41,125.37,31.4952937]
[1744811263123,31.4952937,125.41,125.36,59.41444924]
[1744811263314,31.4952937,125.4,125.36,27.91915554]
[1744811263497,31.4952937,125.4,125.36,7.97702616]
[1744811263701,31.4952937,125.39,125.36,7.97702616]
[1744811264082,31.63745527,125.4,125.36,7.97702616]
[1744811264301,82.9,125.42,125.38,31.4952937]
[1744811264507,114.3952937,125.42,125.38,31.4952937]
[1744811264705,82.9,125.42,125.38,31.4952937]
[1744811264886,82.9,125.42,125.39,39.47041133]
[1744811265099,33.1543937,125.47,125.41,31.4952937]
[1744811265295,26.0,125.46,125.42,31.4952937]
[1744811265616,57.4952937,125.46,125.41,31.4952937]
[1744811265911,31.4952937,125.45,125.41,31.4952937]
[1744811266109,31.4952937,125.43,125.39,7.97511763]
[1744811266491,1.6339,125.5,125.42,31.4952937]
[1744811266699,31.4952937,125.49,125.44,31.4952937]
[1744811266880,31.4952937,125.49,125.44,39.46682193]
[1744811267079,31.4952937,125.49,125.45,31.4952937]
[1744811267308,31.4952937,125.48,125.44,7.97152823]
[1744811267885,31.4952937,125.46,125.43,7.97233481]
[1744811268086,31.4952937,125.47,125.43,39.46762851]
[1744811268301,0.14216157,125.48,125.44,31.4952937]
[1744811268612,0.14216157,125.46,125.43,7.97233481]
[1744811268813,31.4952937,125.46,125.43,7.97233481]
[1744811269416,31.63745527,125.47,125.43,7.97233481]
[1744811269806,31.4952937,125.48,125.43,39.46762851]
[1744811270209,57.4952937,125.49,125.44,31.4952937]
[1744811270891,57.4952937,125.49,125.45,7.9713033]
[1744811271810,54.9952937,125.49,125.45,7.9713033]
[1744811272036,23.5,125.49,125.45,27.89956157]
[1744811272323,0.14216157,125.5,125.46,31.4952937]
[1744811272510,114.3952937,125.51,125.46,31.4952937]
[1744811272708,31.4952937,125.5,125.46,31.4952937]
[1744811273101,31.4952937,125.5,125.47,7.97003267]
[1744811273613,0.70847147,158.66,125.47,34.28771436]
[1744811273614,82.9,125.55,125.47,34.28771436]
[1744811273923,31.4952937,125.53,125.48,31.4952937]
[1744811274221,31.4952937,125.53,125.47,34.28771436]
[1744811274222,31.4952937,125.5,125.47,7.97003267]
[1744811274527,31.4952937,125.51,125.47,7.97003267]
[1744811274731,31.4952937,125.51,125.46,51.42094666]
[1744811275329,26.0,125.51,125.47,31.4952937]
[1744811275642,31.4952937,125.5,125.46,51.42094666]
[1744811275828,31.4952937,125.5,125.46,19.92565296]
[1744811275995,31.4952937,125.47,125.44,26.32190728]
[1744811276197,31.4952937,125.49,125.44,57.81720098]
[1744811277427,31.4952937,125.49,125.45,7.9713033]
[1744811277801,0.14216157,125.5,125.45,59.39485527]
[1744811277802,31.4952937,125.5,125.45,59.39485527]
[1744811279809,57.4952937,125.5,125.46,31.4952937]
[1744811280133,82.9,125.53,125.48,31.4952937]
[1744811280310,57.4952937,125.53,125.48,31.4952937]
[1744811280627,26.0,125.53,125.49,31.4952937]
[1744811280930,26.0,125.53,125.5,31.4952937]
[1744811281131,280.2152937,125.59,125.52,31.4952937]
[1744811281318,248.72,125.59,125.55,31.4952937]
[1744811281628,31.4952937,125.56,125.53,7.96622321]
[1744811282505,31.4952937,125.56,125.51,37.7115937]
[1744811282506,57.4952937,125.54,125.48,7.96939751]
[1744811282713,31.4952937,125.49,125.46,7.97066794]
[1744811283437,31.4952937,125.49,125.45,7.9713033]
[1744811283623,31.4952937,125.46,125.44,7.97165795]
[1744811283943,31.4952937,125.45,125.42,7.97321001]
[1744811284099,31.4952937,125.43,125.38,6.1544]
[1744811284305,31.4952937,125.41,125.39,30.0]
[1744811284503,31.4952937,125.42,125.39,30.0]
[1744811284929,31.4952937,125.41,125.39,30.0]
[1744811285316,31.4952937,125.42,125.38,31.4952937]
[1744811285508,31.4952937,125.43,125.39,7.97511763]
[1744811285713,7.97208047,125.44,125.39,7.97511763]
[1744811285714,31.4952937,125.42,125.39,7.97511763]
[1744811286016,31.4952937,125.41,125.38,7.97545863]
[1744811286230,26.0,125.44,125.39,31.4952937]
[1744811286406,26.0,125.44,125.4,31.4952937]
[1744811286605,6.1156,125.48,125.42,31.4952937]
[1744811286806,248.66,125.49,125.44,31.4952937]
[1744811287020,31.4952937,125.48,125.44,31.4952937]
[1744811287209,31.4952937,125.46,125.42,31.4952937]
[1744811287423,31.4952937,125.47,125.42,31.4952937]
[1744811287638,280.1552937,125.49,125.44,31.4952937]
[1744811287842,31.4952937,125.48,125.44,31.4952937]
[1744811288015,274.66,125.49,125.45,31.4952937]
[1744811288210,248.66,125.49,125.45,31.4952937]
[1744811288615,280.1552937,125.49,125.45,31.4952937]
[1744811289320,248.66,125.49,125.45,31.4952937]
[1744811289527,31.4952937,125.5,125.46,7.97066794]
[1744811289839,31.63745527,125.5,125.46,7.97066794]
[1744811290333,31.4952937,125.5,125.46,39.46596164]
[1744811290539,7.96574506,125.54,125.48,31.4952937]
[1744811290831,31.4952937,125.52,125.47,31.4952937]
[1744811291035,31.4952937,125.51,125.46,65.67513149]
[1744811291226,31.4952937,125.52,125.48,31.4952937]
[1744811291433,57.63745527,125.53,125.48,31.4952937]
[1744811291612,248.7,125.56,125.5,31.4952937]
[1744811291822,31.4952937,125.52,125.46,6.2825]
[1744811292135,57.4952937,125.53,125.48,31.4952937]
[1744811292523,57.4952937,125.53,125.47,27.8948342]
[1744811292524,31.4952937,125.52,125.47,59.3901279]
[1744811292722,31.4952937,125.51,125.47,7.97003267]
[1744811292922,31.4952937,125.51,125.47,39.46532637]
[1744811293150,31.4952937,125.52,125.47,39.46532637]
[1744811293340,31.4952937,125.51,125.47,39.46532637]
[1744811293614,31.4952937,125.51,125.41,7.97384578]
[1744811293615,26.0,125.45,125.41,7.97384578]
[1744811293829,31.4952937,125.42,125.41,7.97384578]
[1744811294039,31.4952937,125.42,125.4,14.21117227]
[1744811294242,31.4952937,125.43,125.4,14.21117227]
[1744811294823,31.4952937,125.42,125.39,7.97493873]
[1744811295224,31.4952937,125.43,125.39,7.97493873]
[1744811295535,57.4952937,125.44,125.39,59.40802651]
[1744811295723,54.9952937,125.44,125.39,59.40802651]
[1744811296130,23.5,125.44,125.39,57.90802651]
[1744811296339,31.4952937,125.46,125.41,31.4952937]
[1744811296540,31.4952937,125.52,125.45,31.4952937]
[1744811296839,31.4952937,125.52,125.48,31.4952937]
[1744811297046,31.4952937,125.52,125.47,31.4952937]
[1744811297342,9.54630157,125.54,125.49,31.4952937]
[1744811297545,9.54630157,125.54,125.45,1.58]
[1744811297546,7.96524163,125.55,125.5,31.4952937]
[1744811297846,26.0,125.52,125.49,39.46358684]
[1744811298427,26.0,125.52,125.49,7.96829314]
[1744811299543,26.0,125.52,125.49,55.62066249]
[1744811299726,26.0,125.52,125.5,47.65236935]
[1744811300745,26.0,125.52,125.51,55.61986198]
[1744811300937,73.65236935,125.52,125.49,7.96876245]
[1744811302047,26.0,125.52,125.49,55.6211318]
[1744811303056,26.0,125.52,125.5,47.65236935]
[1744811303345,73.65236935,125.52,125.49,7.96876245]
[1744811304634,47.65236935,125.5,125.48,7.96916015]
[1744811304833,47.65236935,125.5,125.47,7.97003267]
[1744811305139,47.65236935,125.48,125.42,1.5283]
[1744811305343,47.65236935,125.43,125.39,21.46572701]
[1744811305530,47.65236935,125.42,125.4,7.97448165]
[1744811305731,47.65236935,125.44,125.4,27.91068579]
[1744811305925,47.65236935,125.42,125.4,27.91068579]
[1744811306154,47.65236935,125.41,125.39,7.97485852]
[1744811306448,47.65236935,125.42,125.39,7.97485852]
[1744811306753,73.65236935,125.45,125.4,47.65236935]
[1744811307052,73.65236935,125.45,125.41,7.97384578]
[1744811307251,47.65236935,125.43,125.41,7.97384578]
[1744811307450,26.0,125.45,125.38,7.9757537]
[1744811307451,47.65236935,125.42,125.38,7.9757537]
[1744811307648,47.65236935,125.41,125.38,7.9757537]
[1744811307964,47.65236935,125.44,125.39,47.65236935]
[1744811308137,47.65236935,125.44,125.4,47.65236935]
[1744811308331,47.65236935,125.44,125.39,47.65236935]
[1744811308533,47.65236935,125.44,125.4,47.65236935]
[1744811308831,73.65236935,125.45,125.4,47.65236935]
[1744811309150,26.0,125.46,125.41,47.65236935]
[1744811309330,73.65236935,125.46,125.41,47.65236935]
[1744811310035,47.65236935,125.45,125.42,7.97321001]
[1744811310249,73.65236935,125.46,125.42,55.62557936]
[1744811310549,47.65236935,125.44,125.42,7.97321001]
[1744811310751,47.65236935,125.44,125.4,27.91016123]
[1744811310959,47.65236935,125.44,125.4,75.56253058]
[1744811311151,26.0,125.46,125.4,75.56253058]
[1744811311346,47.65236935,125.45,125.4,75.56253058]
[1744811311652,47.65236935,125.46,125.42,47.65236935]
[1744811311863,47.65236935,125.47,125.42,47.65236935]
[1744811312033,26.0,125.48,125.43,94.20602841]
[1744811312233,47.65236935,125.51,125.47,47.65236935]
[1744811312460,47.65236935,125.52,125.47,47.65236935]
[1744811312629,47.65236935,125.52,125.48,47.65236935]
[1744811313268,47.65236935,125.51,125.45,18.64964886]
[1744811313434,47.65236935,125.51,125.46,47.65236935]
[1744811313830,47.65236935,125.5,125.45,47.65236935]
[1744811314263,47.65236935,125.5,125.46,55.62303729]
[1744811314762,73.65236935,125.51,125.46,55.62303729]
[1744811315365,47.65236935,125.49,125.46,7.97066794]
[1744811315742,47.65236935,125.49,125.43,38.58077785]
[1744811315743,47.65236935,125.47,125.44,7.97193877]
[1744811315945,26.0,125.48,125.44,55.62430812]